[Event "Titled Tuesday Blitz May 23 Late 2023"]
[White "Ismayil, Malak"]
[Black "Prieto Aranguren, Alain"]
[WhiteFideId "13412604"]
[BlackFideId "2268906"]
[WhiteElo "1868"]
[BlackElo "2209"]
[Result "1-0"]
[Round "03"]
[TimeControl "180+2"]
[Date "2023.05.23"]
[WhiteClock "0:00:49"]
[BlackClock "0:00:00"]

1. e4 {[%clk 0:03:00]}  c6 {[%clk 0:02:54]} 2. d4 {[%clk 0:03:00]}  d5 {[%clk 0:02:54]} 3. Nc3 {[%clk 0:03:00]}  dxe4 {[%clk 0:02:54]} 4. Nxe4 {[%clk 0:03:01]}  h6 {[%clk 0:02:54]} 5. Nf3 {[%clk 0:02:57]}  Bg4 {[%clk 0:02:54]} 6. Be3 {[%clk 0:02:56]}  Nf6 {[%clk 0:02:53]} 7. Nxf6+ {[%clk 0:02:55]}  exf6 {[%clk 0:02:54]} 8. Be2 {[%clk 0:02:55]}  Bd6 {[%clk 0:02:54]} 9. h3 {[%clk 0:02:56]}  Bh5 {[%clk 0:02:54]} 10. Qd2 {[%clk 0:02:56]}  Nd7 {[%clk 0:02:52]} 11. d5 {[%clk 0:02:52]}  c5 {[%clk 0:02:49]} 12. c4 {[%clk 0:02:51]}  O-O {[%clk 0:02:48]} 13. O-O {[%clk 0:02:50]}  Re8 {[%clk 0:02:47]} 14. Rfe1 {[%clk 0:02:48]}  Bxf3 {[%clk 0:02:19]} 15. Bxf3 {[%clk 0:02:48]}  Ne5 {[%clk 0:02:14]} 16. Be2 {[%clk 0:02:48]}  Ng6 {[%clk 0:02:13]} 17. Bd3 {[%clk 0:02:43]}  Qc7 {[%clk 0:02:10]} 18. Bxg6 {[%clk 0:02:42]}  fxg6 {[%clk 0:02:11]} 19. Rac1 {[%clk 0:02:35]}  Re7 {[%clk 0:02:08]} 20. b4 {[%clk 0:02:33]}  b6 {[%clk 0:02:05]} 21. bxc5 {[%clk 0:02:31]}  bxc5 {[%clk 0:02:05]} 22. Rb1 {[%clk 0:02:31]}  Rae8 {[%clk 0:02:00]} 23. Rec1 {[%clk 0:02:05]}  f5 {[%clk 0:01:57]} 24. Qd3 {[%clk 0:02:02]}  Kh7 {[%clk 0:01:43]} 25. Rb5 {[%clk 0:01:53]}  f4 {[%clk 0:01:41]} 26. Bd2 {[%clk 0:01:53]}  Re2 {[%clk 0:01:28]} 27. Rd1 {[%clk 0:01:47]}  Qe7 {[%clk 0:01:13]} 28. Rb3 {[%clk 0:01:32]}  Qe5 {[%clk 0:01:08]} 29. Bc3 {[%clk 0:01:29]}  Qg5 {[%clk 0:00:56]} 30. Qf3 {[%clk 0:01:25]}  Qe7 {[%clk 0:00:38]} 31. Rbb1 {[%clk 0:01:18]}  g5 {[%clk 0:00:17]} 32. Re1 {[%clk 0:01:17]}  Kg8 {[%clk 0:00:14]} 33. Rxe2 {[%clk 0:01:14]}  Qxe2 {[%clk 0:00:14]} 34. Re1 {[%clk 0:01:15]}  Qxf3 {[%clk 0:00:13]} 35. Rxe8+ {[%clk 0:01:15]}  Kf7 {[%clk 0:00:13]} 36. gxf3 {[%clk 0:01:15]}  Kxe8 {[%clk 0:00:13]} 37. Bxg7 {[%clk 0:01:15]}  h5 {[%clk 0:00:12]} 38. Bf6 {[%clk 0:01:13]}  g4 {[%clk 0:00:07]} 39. fxg4 {[%clk 0:01:14]}  hxg4 {[%clk 0:00:07]} 40. hxg4 {[%clk 0:01:15]}  Kf7 {[%clk 0:00:07]} 41. Bc3 {[%clk 0:01:10]}  Kg6 {[%clk 0:00:08]} 42. f3 {[%clk 0:01:10]}  Kg5 {[%clk 0:00:08]} 43. Kg2 {[%clk 0:01:09]}  Bc7 {[%clk 0:00:04]} 44. a4 {[%clk 0:01:07]}  a5 {[%clk 0:00:04]} 45. Bg7 {[%clk 0:01:04]}  Bd6 {[%clk 0:00:03]} 46. Kf2 {[%clk 0:00:58]}  Bc7 {[%clk 0:00:03]} 47. Bf8 {[%clk 0:00:57]}  Bb6 {[%clk 0:00:01]} 48. Be7+ {[%clk 0:00:53]}  Kg6 {[%clk 0:00:01]} 49. Bd6 {[%clk 0:00:49]}  Kf7 {[%clk 0:00:01]} 50. Bxf4 {[%clk 0:00:49]}  Bc7 {[%clk 0:00:00]} 51. Bxc7 {[%clk 0:00:49]} 1-0


[Site "https://www.chess.com"]

[Event "Titled Tuesday Blitz May 23 Late 2023"]
[White "Rose, Felix"]
[Black "Santos Flores, Alberto"]
[WhiteFideId "5105722"]
[BlackFideId "3601234"]
[WhiteElo "2039"]
[BlackElo "2235"]
[Result "1-0"]
[Round "03"]
[TimeControl "180+2"]
[Date "2023.05.23"]
[WhiteClock "0:00:17"]
[BlackClock "0:00:14"]

1. e4 {[%clk 0:03:00]}  c5 {[%clk 0:02:55]} 2. Nf3 {[%clk 0:03:00]}  Nc6 {[%clk 0:02:56]} 3. d4 {[%clk 0:03:00]}  cxd4 {[%clk 0:02:56]} 4. Nxd4 {[%clk 0:03:01]}  g6 {[%clk 0:02:56]} 5. c4 {[%clk 0:03:01]}  Nf6 {[%clk 0:02:56]} 6. Nc3 {[%clk 0:03:01]}  d6 {[%clk 0:02:57]} 7. f3 {[%clk 0:03:01]}  Nxd4 {[%clk 0:02:55]} 8. Qxd4 {[%clk 0:03:02]}  Bg7 {[%clk 0:02:55]} 9. Be3 {[%clk 0:03:02]}  O-O {[%clk 0:02:55]} 10. Qd2 {[%clk 0:03:03]}  Be6 {[%clk 0:02:55]} 11. Rc1 {[%clk 0:03:01]}  Qa5 {[%clk 0:02:56]} 12. b3 {[%clk 0:03:01]}  Rfc8 {[%clk 0:02:55]} 13. Bd3 {[%clk 0:03:01]}  a6 {[%clk 0:02:53]} 14. Ne2 {[%clk 0:03:01]}  Qxd2+ {[%clk 0:02:49]} 15. Kxd2 {[%clk 0:03:02]}  b5 {[%clk 0:02:43]} 16. Nd4 {[%clk 0:02:59]}  bxc4 {[%clk 0:02:41]} 17. Nxe6 {[%clk 0:02:57]}  cxd3 {[%clk 0:02:36]} 18. Nc7 {[%clk 0:02:54]}  Rab8 {[%clk 0:02:27]} 19. Nxa6 {[%clk 0:02:53]}  Rxc1 {[%clk 0:02:20]} 20. Rxc1 {[%clk 0:02:53]}  Ra8 {[%clk 0:02:20]} 21. Nb4 {[%clk 0:02:53]}  Nd7 {[%clk 0:02:15]} 22. Kxd3 {[%clk 0:02:45]}  e6 {[%clk 0:02:08]} 23. Rc7 {[%clk 0:02:18]}  Nc5+ {[%clk 0:02:07]} 24. Kc4 {[%clk 0:02:05]}  Be5 {[%clk 0:01:43]} 25. Rc6 {[%clk 0:01:40]}  Bxh2 {[%clk 0:01:38]} 26. Bxc5 {[%clk 0:01:37]}  dxc5 {[%clk 0:01:38]} 27. Kxc5 {[%clk 0:01:34]}  Be5 {[%clk 0:01:25]} 28. a4 {[%clk 0:01:32]}  h5 {[%clk 0:01:22]} 29. Ra6 {[%clk 0:01:21]}  Rc8+ {[%clk 0:01:15]} 30. Nc6 {[%clk 0:01:22]}  g5 {[%clk 0:01:13]} 31. b4 {[%clk 0:01:20]}  g4 {[%clk 0:01:11]} 32. fxg4 {[%clk 0:01:18]}  hxg4 {[%clk 0:01:10]} 33. b5 {[%clk 0:01:16]}  f5 {[%clk 0:01:08]} 34. exf5 {[%clk 0:01:15]}  exf5 {[%clk 0:01:09]} 35. Kd5 {[%clk 0:01:15]}  Bf6 {[%clk 0:01:06]} 36. Ke6 {[%clk 0:01:12]}  f4 {[%clk 0:01:05]} 37. Kxf6 {[%clk 0:01:10]}  Rf8+ {[%clk 0:01:05]} 38. Kg6 {[%clk 0:01:10]}  f3 {[%clk 0:01:05]} 39. Ne7+ {[%clk 0:01:07]}  Kh8 {[%clk 0:01:04]} 40. gxf3 {[%clk 0:00:51]}  g3 {[%clk 0:01:03]} 41. Kh5 {[%clk 0:00:35]}  Rxf3 {[%clk 0:00:59]} 42. Rg6 {[%clk 0:00:25]}  Re3 {[%clk 0:00:43]} 43. Nf5 {[%clk 0:00:18]}  Ra3 {[%clk 0:00:40]} 44. Rxg3 {[%clk 0:00:15]}  Rxa4 {[%clk 0:00:40]} 45. Rb3 {[%clk 0:00:15]}  Ra8 {[%clk 0:00:38]} 46. Kg6 {[%clk 0:00:15]}  Kg8 {[%clk 0:00:38]} 47. Kf6 {[%clk 0:00:15]}  Kf8 {[%clk 0:00:38]} 48. Ke6 {[%clk 0:00:16]}  Ke8 {[%clk 0:00:39]} 49. Kd6 {[%clk 0:00:16]}  Kd8 {[%clk 0:00:40]} 50. Kc6 {[%clk 0:00:17]}  Kc8 {[%clk 0:00:40]} 51. Nd6+ {[%clk 0:00:17]}  Kb8 {[%clk 0:00:40]} 52. Rf3 {[%clk 0:00:17]}  Ra1 {[%clk 0:00:40]} 53. Rf8+ {[%clk 0:00:17]}  Ka7 {[%clk 0:00:14]} 54. b6+ {[%clk 0:00:17]} 1-0


[Site "https://www.chess.com"]

[Event "Titled Tuesday Blitz May 23 Late 2023"]
[White "olga-belka"]
[Black "Petrovic, Aleksa"]
[BlackFideId "967629"]
[WhiteElo "2256"]
[BlackElo "2309"]
[Result "0-1"]
[Round "03"]
[TimeControl "180+2"]
[Date "2023.05.23"]
[WhiteClock "0:00:06"]
[BlackClock "0:01:14"]

1. e4 {[%clk 0:02:59]}  d5 {[%clk 0:02:59]} 2. exd5 {[%clk 0:02:58]}  Qxd5 {[%clk 0:03:00]} 3. Nc3 {[%clk 0:02:58]}  Qe5+ {[%clk 0:03:01]} 4. Be2 {[%clk 0:02:57]}  Bg4 {[%clk 0:03:01]} 5. h3 {[%clk 0:02:52]}  Bxe2 {[%clk 0:03:01]} 6. Ngxe2 {[%clk 0:02:52]}  c6 {[%clk 0:03:00]} 7. O-O {[%clk 0:02:48]}  Nf6 {[%clk 0:03:00]} 8. d4 {[%clk 0:02:48]}  Qc7 {[%clk 0:02:59]} 9. Bf4 {[%clk 0:02:48]}  Qd8 {[%clk 0:02:59]} 10. Re1 {[%clk 0:02:45]}  e6 {[%clk 0:02:58]} 11. Ng3 {[%clk 0:02:39]}  Be7 {[%clk 0:02:58]} 12. Qd2 {[%clk 0:02:33]}  O-O {[%clk 0:02:57]} 13. Rad1 {[%clk 0:02:32]}  Nd5 {[%clk 0:02:54]} 14. Be5 {[%clk 0:02:24]}  Nxc3 {[%clk 0:02:52]} 15. Qxc3 {[%clk 0:02:21]}  Nd7 {[%clk 0:02:47]} 16. Ne4 {[%clk 0:02:11]}  Nf6 {[%clk 0:02:44]} 17. Bxf6 {[%clk 0:01:57]}  Bxf6 {[%clk 0:02:43]} 18. Qb3 {[%clk 0:01:56]}  b6 {[%clk 0:02:33]} 19. c3 {[%clk 0:01:55]}  Be7 {[%clk 0:02:32]} 20. Qc2 {[%clk 0:01:53]}  Qd5 {[%clk 0:02:27]} 21. b3 {[%clk 0:01:48]}  Rfd8 {[%clk 0:02:24]} 22. c4 {[%clk 0:01:35]}  Qf5 {[%clk 0:02:19]} 23. Qe2 {[%clk 0:01:30]}  Bb4 {[%clk 0:02:14]} 24. Rf1 {[%clk 0:01:30]}  Rd7 {[%clk 0:02:13]} 25. Ng3 {[%clk 0:01:27]}  Qg6 {[%clk 0:02:08]} 26. Qb2 {[%clk 0:01:23]}  Rad8 {[%clk 0:02:05]} 27. a3 {[%clk 0:01:21]}  Be7 {[%clk 0:02:01]} 28. b4 {[%clk 0:01:18]}  Bf6 {[%clk 0:01:56]} 29. Ne2 {[%clk 0:01:17]}  Qe4 {[%clk 0:01:50]} 30. Ng3 {[%clk 0:01:08]}  Qh4 {[%clk 0:01:47]} 31. Ne2 {[%clk 0:01:02]}  Bxd4 {[%clk 0:01:39]} 32. Nxd4 {[%clk 0:00:57]}  Rxd4 {[%clk 0:01:40]} 33. Rxd4 {[%clk 0:00:54]}  Qxd4 {[%clk 0:01:41]} 34. Qc2 {[%clk 0:00:49]}  Qd3 {[%clk 0:01:39]} 35. Rc1 {[%clk 0:00:47]}  Qxc2 {[%clk 0:01:38]} 36. Rxc2 {[%clk 0:00:47]}  Rd1+ {[%clk 0:01:37]} 37. Kh2 {[%clk 0:00:47]}  Rd3 {[%clk 0:01:38]} 38. a4 {[%clk 0:00:42]}  Kf8 {[%clk 0:01:30]} 39. a5 {[%clk 0:00:40]}  bxa5 {[%clk 0:01:28]} 40. bxa5 {[%clk 0:00:39]}  Ra3 {[%clk 0:01:28]} 41. Rb2 {[%clk 0:00:37]}  Rxa5 {[%clk 0:01:27]} 42. Rb7 {[%clk 0:00:33]}  g5 {[%clk 0:01:26]} 43. c5 {[%clk 0:00:24]}  Kg7 {[%clk 0:01:20]} 44. Rc7 {[%clk 0:00:23]}  Rxc5 {[%clk 0:01:19]} 45. Rxa7 {[%clk 0:00:23]}  h5 {[%clk 0:01:18]} 46. g3 {[%clk 0:00:22]}  Rc2 {[%clk 0:01:16]} 47. Kg2 {[%clk 0:00:21]}  g4 {[%clk 0:01:16]} 48. hxg4 {[%clk 0:00:21]}  hxg4 {[%clk 0:01:17]} 49. Ra4 {[%clk 0:00:21]}  f5 {[%clk 0:01:17]} 50. Ra7+ {[%clk 0:00:19]}  Kf6 {[%clk 0:01:16]} 51. Ra8 {[%clk 0:00:18]}  Rc1 {[%clk 0:01:16]} 52. Rf8+ {[%clk 0:00:17]}  Ke7 {[%clk 0:01:15]} 53. Rc8 {[%clk 0:00:16]}  c5 {[%clk 0:01:14]} 54. Rc7+ {[%clk 0:00:13]}  Kf6 {[%clk 0:01:14]} 55. Rc8 {[%clk 0:00:06]}  c4 {[%clk 0:01:14]} 0-1


[Site "https://www.chess.com"]

[Event "Titled Tuesday Blitz May 23 Late 2023"]
[White "Seletsky, Grigory"]
[Black "Harish, Neeraj"]
[WhiteFideId "14112191"]
[BlackFideId "30958130"]
[WhiteElo "2491"]
[BlackElo "1879"]
[Result "1-0"]
[Round "03"]
[TimeControl "180+2"]
[Date "2023.05.23"]
[WhiteClock "0:01:02"]
[BlackClock "0:00:18"]

1. d4 {[%clk 0:02:58]}  Nf6 {[%clk 0:02:56]} 2. c3 {[%clk 0:02:57]}  d5 {[%clk 0:02:54]} 3. Bf4 {[%clk 0:02:57]}  e6 {[%clk 0:02:52]} 4. e3 {[%clk 0:02:57]}  Bd6 {[%clk 0:02:52]} 5. Bxd6 {[%clk 0:02:55]}  Qxd6 {[%clk 0:02:53]} 6. f4 {[%clk 0:02:55]}  O-O {[%clk 0:02:52]} 7. Nf3 {[%clk 0:02:55]}  c5 {[%clk 0:02:44]} 8. Bd3 {[%clk 0:02:53]}  c4 {[%clk 0:02:39]} 9. Bc2 {[%clk 0:02:52]}  Nc6 {[%clk 0:02:40]} 10. Nbd2 {[%clk 0:02:52]}  b5 {[%clk 0:02:33]} 11. a3 {[%clk 0:02:49]}  Bb7 {[%clk 0:02:28]} 12. Ne5 {[%clk 0:02:50]}  a5 {[%clk 0:02:20]} 13. Qf3 {[%clk 0:02:43]}  Ne7 {[%clk 0:02:05]} 14. O-O {[%clk 0:02:42]}  b4 {[%clk 0:02:02]} 15. g4 {[%clk 0:02:35]}  bxc3 {[%clk 0:01:20]} 16. bxc3 {[%clk 0:02:33]}  Rab8 {[%clk 0:01:17]} 17. Qh3 {[%clk 0:02:29]}  Ng6 {[%clk 0:01:09]} 18. g5 {[%clk 0:02:00]}  Ne4 {[%clk 0:00:59]} 19. Bxe4 {[%clk 0:01:52]}  dxe4 {[%clk 0:01:00]} 20. Ndxc4 {[%clk 0:01:51]}  Qc7 {[%clk 0:00:58]} 21. Rfc1 {[%clk 0:01:49]}  Ba6 {[%clk 0:00:53]} 22. Nxg6 {[%clk 0:01:49]}  hxg6 {[%clk 0:00:51]} 23. Ne5 {[%clk 0:01:40]}  Rb2 {[%clk 0:00:33]} 24. c4 {[%clk 0:01:39]}  Rfb8 {[%clk 0:00:26]} 25. d5 {[%clk 0:01:24]}  exd5 {[%clk 0:00:20]} 26. cxd5 {[%clk 0:01:25]}  Rc2 {[%clk 0:00:18]} 27. Rxc2 {[%clk 0:01:15]}  Qxc2 {[%clk 0:00:18]} 28. Qd7 {[%clk 0:01:11]}  Rb2 {[%clk 0:00:17]} 29. Qxf7+ {[%clk 0:01:11]}  Kh8 {[%clk 0:00:18]} 30. Qe8+ {[%clk 0:01:01]}  Kh7 {[%clk 0:00:18]} 31. Qxg6+ {[%clk 0:01:02]}  Kh8 {[%clk 0:00:18]} 32. Qe8+ {[%clk 0:01:02]}  Kh7 {[%clk 0:00:17]} 33. g6+ {[%clk 0:01:02]}  Kh6 {[%clk 0:00:18]} 34. Qh8# {[%clk 0:01:02]} 1-0


[Site "https://www.chess.com"]

[Event "Titled Tuesday Blitz May 23 Late 2023"]
[White "Toniutti, Ezio"]
[Black "Almedina Ortiz, Edgardo J."]
[WhiteFideId "113034"]
[BlackFideId "3100197"]
[WhiteElo "2215"]
[BlackElo "2217"]
[Result "1-0"]
[Round "03"]
[TimeControl "180+2"]
[Date "2023.05.23"]
[WhiteClock "0:00:06"]
[BlackClock "0:00:00"]

1. d4 {[%clk 0:03:00]}  d5 {[%clk 0:02:59]} 2. c4 {[%clk 0:03:01]}  e6 {[%clk 0:02:59]} 3. Nf3 {[%clk 0:02:57]}  Nf6 {[%clk 0:02:59]} 4. g3 {[%clk 0:02:58]}  dxc4 {[%clk 0:02:56]} 5. Bg2 {[%clk 0:02:58]}  Nc6 {[%clk 0:02:56]} 6. O-O {[%clk 0:02:58]}  a6 {[%clk 0:02:56]} 7. Nc3 {[%clk 0:02:58]}  Rb8 {[%clk 0:02:51]} 8. e4 {[%clk 0:02:58]}  b5 {[%clk 0:02:50]} 9. d5 {[%clk 0:02:58]}  Nb4 {[%clk 0:02:42]} 10. Ne5 {[%clk 0:02:45]}  Bd6 {[%clk 0:02:33]} 11. Bf4 {[%clk 0:02:44]}  O-O {[%clk 0:02:17]} 12. a3 {[%clk 0:02:31]}  Bxe5 {[%clk 0:02:15]} 13. Bxe5 {[%clk 0:02:17]}  Nd3 {[%clk 0:02:14]} 14. Bxf6 {[%clk 0:02:10]}  Qxf6 {[%clk 0:02:14]} 15. Qd2 {[%clk 0:02:10]}  exd5 {[%clk 0:01:59]} 16. exd5 {[%clk 0:02:02]}  Bf5 {[%clk 0:01:57]} 17. Rab1 {[%clk 0:01:32]}  Rfe8 {[%clk 0:01:32]} 18. b3 {[%clk 0:01:32]}  Nc5 {[%clk 0:01:28]} 19. bxc4 {[%clk 0:01:27]}  Bxb1 {[%clk 0:01:27]} 20. Rxb1 {[%clk 0:01:21]}  bxc4 {[%clk 0:01:25]} 21. Rd1 {[%clk 0:01:20]}  Nd3 {[%clk 0:01:21]} 22. Ne4 {[%clk 0:01:16]}  Qd4 {[%clk 0:01:09]} 23. Qe3 {[%clk 0:01:12]}  Qxe3 {[%clk 0:01:04]} 24. fxe3 {[%clk 0:01:11]}  Rb2 {[%clk 0:01:04]} 25. d6 {[%clk 0:01:01]}  cxd6 {[%clk 0:00:25]} 26. Nxd6 {[%clk 0:01:01]}  Reb8 {[%clk 0:00:17]} 27. Nxc4 {[%clk 0:01:00]}  R2b3 {[%clk 0:00:17]} 28. Bf1 {[%clk 0:00:57]}  Nc5 {[%clk 0:00:13]} 29. Rd5 {[%clk 0:00:53]}  Ne6 {[%clk 0:00:13]} 30. Ra5 {[%clk 0:00:50]}  Rd8 {[%clk 0:00:07]} 31. Rxa6 {[%clk 0:00:49]}  g6 {[%clk 0:00:07]} 32. Nd6 {[%clk 0:00:43]}  Rd7 {[%clk 0:00:06]} 33. Ne4 {[%clk 0:00:40]}  Kg7 {[%clk 0:00:05]} 34. a4 {[%clk 0:00:30]}  Rxe3 {[%clk 0:00:05]} 35. Nf2 {[%clk 0:00:26]}  Ra3 {[%clk 0:00:04]} 36. Bb5 {[%clk 0:00:24]}  Rd2 {[%clk 0:00:03]} 37. Rc6 {[%clk 0:00:12]}  Ra1+ {[%clk 0:00:02]} 38. Kg2 {[%clk 0:00:07]}  Raa2 {[%clk 0:00:03]} 39. Kf3 {[%clk 0:00:07]}  Rxf2+ {[%clk 0:00:03]} 40. Ke3 {[%clk 0:00:08]}  Rae2+ {[%clk 0:00:03]} 41. Kd3 {[%clk 0:00:08]}  Rd2+ {[%clk 0:00:02]} 42. Ke3 {[%clk 0:00:08]}  Rxh2 {[%clk 0:00:02]} 43. a5 {[%clk 0:00:08]}  Ra2 {[%clk 0:00:02]} 44. a6 {[%clk 0:00:08]}  Rhb2 {[%clk 0:00:02]} 45. Bc4 {[%clk 0:00:07]}  Ra3+ {[%clk 0:00:00]} 46. Ke4 {[%clk 0:00:06]} 1-0


[Site "https://www.chess.com"]

[Event "Titled Tuesday Blitz May 23 Late 2023"]
[White "Smiechu"]
[Black "Elgersma, Onno"]
[BlackFideId "1053531"]
[WhiteElo "2330"]
[BlackElo "2252"]
[Result "1-0"]
[Round "03"]
[TimeControl "180+2"]
[Date "2023.05.23"]
[WhiteClock "0:00:12"]
[BlackClock "0:00:00"]

1. e4 {[%clk 0:03:00]}  d6 {[%clk 0:03:00]} 2. d4 {[%clk 0:02:59]}  Nf6 {[%clk 0:03:00]} 3. Nc3 {[%clk 0:03:00]}  g6 {[%clk 0:03:01]} 4. Be3 {[%clk 0:03:00]}  a6 {[%clk 0:02:57]} 5. f3 {[%clk 0:02:59]}  b5 {[%clk 0:02:57]} 6. h4 {[%clk 0:02:58]}  h5 {[%clk 0:02:56]} 7. Nh3 {[%clk 0:02:57]}  Bxh3 {[%clk 0:02:51]} 8. Rxh3 {[%clk 0:02:56]}  Bg7 {[%clk 0:02:52]} 9. Qd2 {[%clk 0:02:56]}  Nbd7 {[%clk 0:02:49]} 10. Be2 {[%clk 0:02:56]}  c5 {[%clk 0:02:49]} 11. Nd5 {[%clk 0:02:51]}  Rc8 {[%clk 0:02:37]} 12. O-O-O {[%clk 0:02:42]}  Nxd5 {[%clk 0:02:27]} 13. exd5 {[%clk 0:02:41]}  c4 {[%clk 0:02:26]} 14. Qb4 {[%clk 0:02:27]}  Nf6 {[%clk 0:02:22]} 15. Kb1 {[%clk 0:02:08]}  Nxd5 {[%clk 0:02:21]} 16. Qd2 {[%clk 0:02:04]}  c3 {[%clk 0:02:15]} 17. Qd3 {[%clk 0:02:02]}  cxb2 {[%clk 0:02:14]} 18. Bd2 {[%clk 0:02:00]}  Qc7 {[%clk 0:02:07]} 19. f4 {[%clk 0:01:58]}  e6 {[%clk 0:02:02]} 20. g4 {[%clk 0:01:55]}  hxg4 {[%clk 0:01:51]} 21. Bxg4 {[%clk 0:01:55]}  b4 {[%clk 0:01:43]} 22. h5 {[%clk 0:01:51]}  Nc3+ {[%clk 0:01:39]} 23. Bxc3 {[%clk 0:01:48]}  Qxc3 {[%clk 0:01:39]} 24. Qe2 {[%clk 0:01:44]}  Qc4 {[%clk 0:01:35]} 25. Qd2 {[%clk 0:01:34]}  gxh5 {[%clk 0:01:27]} 26. Be2 {[%clk 0:01:30]}  Qc6 {[%clk 0:01:20]} 27. d5 {[%clk 0:01:25]}  Qxd5 {[%clk 0:01:07]} 28. Rd3 {[%clk 0:01:20]}  Qa5 {[%clk 0:00:57]} 29. Rxd6 {[%clk 0:01:19]}  O-O {[%clk 0:00:56]} 30. Bd3 {[%clk 0:01:12]}  Rc3 {[%clk 0:00:54]} 31. Rxa6 {[%clk 0:01:02]}  Qxa6 {[%clk 0:00:19]} 32. Bxa6 {[%clk 0:01:01]}  Ra8 {[%clk 0:00:20]} 33. Bd3 {[%clk 0:00:53]}  Rxa2 {[%clk 0:00:18]} 34. Rg1 {[%clk 0:00:18]}  Ra1+ {[%clk 0:00:17]} 35. Kxb2 {[%clk 0:00:18]}  Rca3+ {[%clk 0:00:18]} 36. Rxg7+ {[%clk 0:00:17]}  Kxg7 {[%clk 0:00:18]} 37. Qxb4 {[%clk 0:00:16]}  R1a2+ {[%clk 0:00:16]} 38. Kc1 {[%clk 0:00:16]}  Ra1+ {[%clk 0:00:17]} 39. Kd2 {[%clk 0:00:17]}  Ra4 {[%clk 0:00:18]} 40. Qc3+ {[%clk 0:00:17]}  Kf8 {[%clk 0:00:18]} 41. Qh8+ {[%clk 0:00:16]}  Ke7 {[%clk 0:00:18]} 42. Qe5 {[%clk 0:00:16]}  Rh1 {[%clk 0:00:16]} 43. Qc5+ {[%clk 0:00:15]}  Kf6 {[%clk 0:00:16]} 44. Qc6 {[%clk 0:00:14]}  Rxf4 {[%clk 0:00:15]} 45. Qxh1 {[%clk 0:00:14]}  h4 {[%clk 0:00:15]} 46. Ke3 {[%clk 0:00:13]}  e5 {[%clk 0:00:15]} 47. c4 {[%clk 0:00:13]}  Kg5 {[%clk 0:00:14]} 48. c5 {[%clk 0:00:13]}  Ra4 {[%clk 0:00:13]} 49. c6 {[%clk 0:00:13]}  Ra7 {[%clk 0:00:00]} 50. Qg1+ {[%clk 0:00:12]} 1-0


[Site "https://www.chess.com"]

[Event "Titled Tuesday Blitz May 23 Late 2023"]
[White "Rodriguez Polo, Mateo"]
[Black "Cruz Mendez, Jean Marco"]
[WhiteFideId "24509396"]
[BlackFideId "3526402"]
[WhiteElo "2117"]
[BlackElo "2064"]
[Result "0-1"]
[Round "03"]
[TimeControl "180+2"]
[Date "2023.05.23"]
[WhiteClock "0:00:12"]
[BlackClock "0:00:13"]

1. Nf3 {[%clk 0:03:00]}  Nf6 {[%clk 0:02:58]} 2. c4 {[%clk 0:02:54]}  g6 {[%clk 0:02:57]} 3. b3 {[%clk 0:02:54]}  Bg7 {[%clk 0:02:58]} 4. Bb2 {[%clk 0:02:54]}  O-O {[%clk 0:02:58]} 5. g3 {[%clk 0:02:47]}  c5 {[%clk 0:02:58]} 6. Bg2 {[%clk 0:02:47]}  d6 {[%clk 0:02:59]} 7. O-O {[%clk 0:02:46]}  e5 {[%clk 0:02:59]} 8. Nc3 {[%clk 0:02:43]}  Nc6 {[%clk 0:02:58]} 9. d3 {[%clk 0:02:41]}  Rb8 {[%clk 0:02:58]} 10. Nd2 {[%clk 0:02:39]}  Ne8 {[%clk 0:02:57]} 11. Nd5 {[%clk 0:02:36]}  Be6 {[%clk 0:02:56]} 12. a3 {[%clk 0:02:35]}  Qd7 {[%clk 0:02:55]} 13. b4 {[%clk 0:02:22]}  b6 {[%clk 0:02:54]} 14. b5 {[%clk 0:02:20]}  Ne7 {[%clk 0:02:54]} 15. Nxe7+ {[%clk 0:02:19]}  Qxe7 {[%clk 0:02:55]} 16. a4 {[%clk 0:02:13]}  Nc7 {[%clk 0:02:49]} 17. a5 {[%clk 0:02:13]}  d5 {[%clk 0:02:49]} 18. axb6 {[%clk 0:02:11]}  axb6 {[%clk 0:02:49]} 19. Qc2 {[%clk 0:02:08]}  Ra8 {[%clk 0:02:38]} 20. Rxa8 {[%clk 0:02:03]}  Rxa8 {[%clk 0:02:39]} 21. Ra1 {[%clk 0:02:04]}  Rxa1+ {[%clk 0:02:38]} 22. Bxa1 {[%clk 0:02:05]}  Qd6 {[%clk 0:02:27]} 23. Bc3 {[%clk 0:01:51]}  h6 {[%clk 0:02:22]} 24. h3 {[%clk 0:01:47]}  f5 {[%clk 0:02:22]} 25. Qa4 {[%clk 0:01:46]}  Kh7 {[%clk 0:01:45]} 26. Qa7 {[%clk 0:01:44]}  dxc4 {[%clk 0:00:54]} 27. dxc4 {[%clk 0:01:39]}  e4 {[%clk 0:00:53]} 28. Bxg7 {[%clk 0:01:39]}  Kxg7 {[%clk 0:00:54]} 29. e3 {[%clk 0:01:05]}  h5 {[%clk 0:00:52]} 30. Bf1 {[%clk 0:01:05]}  Kh6 {[%clk 0:00:52]} 31. Nb1 {[%clk 0:00:59]}  Qd1 {[%clk 0:00:15]} 32. Kg2 {[%clk 0:00:30]}  Qf3+ {[%clk 0:00:12]} 33. Kh2 {[%clk 0:00:26]}  Qxf2+ {[%clk 0:00:11]} 34. Kh1 {[%clk 0:00:24]}  Qxf1+ {[%clk 0:00:11]} 35. Kh2 {[%clk 0:00:25]}  Qf2+ {[%clk 0:00:11]} 36. Kh1 {[%clk 0:00:25]}  Qf3+ {[%clk 0:00:11]} 37. Kh2 {[%clk 0:00:25]}  h4 {[%clk 0:00:11]} 38. gxh4 {[%clk 0:00:25]}  f4 {[%clk 0:00:12]} 39. Qxc7 {[%clk 0:00:22]}  Qxh3+ {[%clk 0:00:12]} 40. Kg1 {[%clk 0:00:23]}  Qxe3+ {[%clk 0:00:12]} 41. Kh2 {[%clk 0:00:19]}  Bg4 {[%clk 0:00:12]} 42. Nd2 {[%clk 0:00:12]}  Qg3+ {[%clk 0:00:12]} 43. Kh1 {[%clk 0:00:11]}  Qe1+ {[%clk 0:00:12]} 44. Kg2 {[%clk 0:00:10]}  Qxd2+ {[%clk 0:00:12]} 45. Kf1 {[%clk 0:00:11]}  Qe2+ {[%clk 0:00:12]} 46. Kg1 {[%clk 0:00:12]}  Qe3+ {[%clk 0:00:13]} 47. Kf1 {[%clk 0:00:12]}  Bh3# {[%clk 0:00:13]} 0-1


[Site "https://www.chess.com"]

[Event "Titled Tuesday Blitz May 23 Late 2023"]
[White "Della Corte, Alessandro"]
[Black "Kim, Sergey"]
[WhiteFideId "813540"]
[BlackFideId "13700570"]
[WhiteElo "2205"]
[BlackElo "2480"]
[Result "0-1"]
[Round "03"]
[TimeControl "180+2"]
[Date "2023.05.23"]
[WhiteClock "0:00:47"]
[BlackClock "0:01:47"]

1. d4 {[%clk 0:02:59]}  Nf6 {[%clk 0:02:59]} 2. c4 {[%clk 0:02:59]}  g6 {[%clk 0:02:59]} 3. Nc3 {[%clk 0:02:59]}  Bg7 {[%clk 0:02:59]} 4. e4 {[%clk 0:02:59]}  d6 {[%clk 0:03:00]} 5. Nf3 {[%clk 0:02:59]}  O-O {[%clk 0:03:00]} 6. Be2 {[%clk 0:03:00]}  e5 {[%clk 0:03:01]} 7. O-O {[%clk 0:02:59]}  exd4 {[%clk 0:03:01]} 8. Nxd4 {[%clk 0:02:59]}  Re8 {[%clk 0:03:02]} 9. f3 {[%clk 0:02:58]}  Nbd7 {[%clk 0:03:02]} 10. Be3 {[%clk 0:02:58]}  c6 {[%clk 0:03:02]} 11. Qd2 {[%clk 0:02:57]}  a5 {[%clk 0:03:02]} 12. Rad1 {[%clk 0:02:57]}  a4 {[%clk 0:03:02]} 13. Rfe1 {[%clk 0:02:54]}  Qa5 {[%clk 0:03:02]} 14. Bf1 {[%clk 0:02:54]}  Nc5 {[%clk 0:03:02]} 15. Bf2 {[%clk 0:02:46]}  Nfd7 {[%clk 0:03:02]} 16. Kh1 {[%clk 0:02:40]}  Ne5 {[%clk 0:03:01]} 17. h3 {[%clk 0:02:27]}  h6 {[%clk 0:02:53]} 18. f4 {[%clk 0:02:26]}  Ned7 {[%clk 0:02:53]} 19. g4 {[%clk 0:02:13]}  Nf8 {[%clk 0:02:46]} 20. Bg2 {[%clk 0:02:09]}  Qb4 {[%clk 0:02:43]} 21. Qe2 {[%clk 0:01:37]}  a3 {[%clk 0:02:39]} 22. e5 {[%clk 0:01:16]}  axb2 {[%clk 0:02:37]} 23. Ne4 {[%clk 0:01:09]}  Nxe4 {[%clk 0:02:34]} 24. Bxe4 {[%clk 0:01:09]}  dxe5 {[%clk 0:02:32]} 25. Nc2 {[%clk 0:01:08]}  Qa5 {[%clk 0:02:23]} 26. f5 {[%clk 0:01:08]}  g5 {[%clk 0:01:55]} 27. Rb1 {[%clk 0:01:07]}  Nd7 {[%clk 0:01:54]} 28. Rxb2 {[%clk 0:01:06]}  Nc5 {[%clk 0:01:54]} 29. Bxc5 {[%clk 0:00:54]}  Qxc5 {[%clk 0:01:53]} 30. Ne3 {[%clk 0:00:52]}  Qd4 {[%clk 0:01:48]} 31. Rf1 {[%clk 0:00:47]}  Qxe4+ {[%clk 0:01:47]} 0-1


[Site "https://www.chess.com"]